[Event "Fagernes Open 2021"]
[Site "Fagernes"]
[Date "2021.10.13"]
[Round "5.17"]
[White "Shehzad, Alina"]
[Black "Andersen, Guttorm"]
[Result "1-0"]
[ECO "C02"]
[WhiteElo "1189"]
[BlackElo "1731"]
[Annotator "NA RC"]
[PlyCount "99"]
[EventDate "2021.10.10"]
[EventCountry "NOR"]
[SourceTitle "playchess.com"]
[Source "ChessBase"]
[SourceQuality "1"]
[TimeControl "40/5400+30:1800+30"]

1. e4 {[%emt 0:00:00]} e6 {[%emt 0:00:00]} 2. d4 {[%emt 0:00:00]} d5 {[%emt 0:00:00]} 3. e5 {[%emt 0:00:00]} c5 {[%emt 0:00:00]} 4. c3 {[%emt 0:00:00]} Nc6 {[%emt 0:00:00]} 5. Nf3 {[%emt 0:00:00]} Qb6 {[%emt 0:00:00]} 6. Be2 {[%emt 0:00:00]} Be7 {[%emt 0:00:00]} 7. O-O {[%emt 0:01:54]} f6 {[%emt 0:00:00]} 8. exf6 {[%emt 0:19:47]} Bxf6 {[%emt 0:02:16]} 9. dxc5 {[%emt 0:00:53]} Qxc5 {[%emt 0:00:06]} 10. Be3 {[%emt 0:00:36]} Qd6 {[%emt 0:01:11]} 11. Na3 {[%emt 0:03:18]} Nge7 {[%emt 0:07:04]} 12. Nb5 {[%emt 0:11:16]} Qd8 {[%emt 0:03:09]} 13. Ng5 {[%emt 0:10:54]} Nf5 {[%emt 0:08:31]} 14. Nf3 {[%emt 0:05:36]} Nxe3 {[%emt 0:02:20]} 15. fxe3 {[%emt 0:00:19]} Qb6 {[%emt 0:03:19]} 16. Nd6+ {[%emt 0:05:00]} Kd7 {[%emt 0:02:38]} 17. Nc4 {[%emt 0:06:56]} Qd8 {[%emt 0:04:45]} 18. e4 {[%emt 0:06:05]} Kc7 {[%emt 0:02:14]} 19. exd5 {[%emt 0:01:49]} exd5 {[%emt 0:02:17]} 20. Na3 {[%emt 0:01:48]} a6 {[%emt 0:04:38]} 21. Qd2 {[%emt 0:04:35]} d4 {[%emt 0:03:07]} 22. Qf4+ {[%emt 0:01:58]} Kb6 {[%emt 0:02:08]} 23. Rad1 {[%emt 0:02:04]} Qe7 {[%emt 0:00:42]} 24. Rfe1 {[%emt 0:01:25]} dxc3 {[%emt 0:02:03]} 25. Nc4+ {[%emt 0:01:31]} Ka7 {[%emt 0:00:34]} 26. Bd3 {[%emt 0:01:25]} Qc5+ {[%emt 0:00:40]} 27. Kh1 {[%emt 0:01:12]} Bd7 {[%emt 0:09:31]} 28. bxc3 {[%emt 0:04:11]} Bxc3 {[%emt 0:01:38]} 29. Re2 {[%emt 0:00:06]} Rhf8 {[%emt 0:03:07]} 30. Qg3 {[%emt 0:00:51]} Bf5 {[%emt 0:07:48]} 31. Bxf5 {[%emt 0:01:41]} Rxf5 {[%emt 0:00:58]} 32. Nd6 {[%emt 0:00:27]} Rd5 {[%emt 0:01:01]} 33. Rxd5 {[%emt 0:01:49]} Qxd5 {[%emt 0:00:04]} 34. Qf2+ {[%emt 0:01:13]} b6 {[%emt 0:01:18]} 35. Ne4 {[%emt 0:00:22]} Qd1+ {[%emt 0:00:47]} 36. Ne1 {[%emt 0:00:20]} Re8 {[%emt 0:06:00]} 37. Nxc3 {[%emt 0:02:12]} Qd7 {[%emt 0:04:04]} 38. Rxe8 {[%emt 0:01:00]} Qxe8 {[%emt 0:00:04]} 39. h3 {[%emt 0:01:36]} Qe5 {[%emt 0:00:53]} 40. Qd2 {[%emt 0:02:12]} b5 {[%emt 0:05:18]} 41. Nf3 {[%emt 0:30:36]} Qe7 {[%emt 0:38:20]} 42. Qf2+ {[%emt 0:01:00]} Kb7 {[%emt 0:00:34]} 43. Nd5 {[%emt 0:00:17]} Qd8 {[%emt 0:00:20]} 44. Nc3 {[%emt 0:00:24]} b4 {[%emt 0:06:08]} 45. Ne4 {[%emt 0:01:15]} Ka8 {[%emt 0:00:00]} 46. Qe2 {[%emt 0:00:00]} Qb6 {[%emt 0:00:00]} 47. Qc4 {[%emt 0:00:00]} Ka7 {[%emt 0:00:00]} 48. Nd6 {[%emt 0:00:00]} Ne7 {[%emt 0:00:00]} 49. Qe6 {[%emt 0:00:00]} Qc7 {[%emt 0:00:00]} 50. Qxe7 {[%emt 0:00:00]} 1-0

[Event "Fagernes Open 2021"]
[Site "Fagernes"]
[Date "2021.10.14"]
[Round "6.1"]
[White "Dahl, Torbjorn"]
[Black "Kittilsen, Sigurd"]
[Result "1-0"]
[ECO "B27"]
[WhiteElo "1876"]
[BlackElo "1881"]
[Annotator "NA"]
[PlyCount "155"]
[EventDate "2021.10.10"]
[EventCountry "NOR"]
[SourceTitle "playchess.com"]
[Source "ChessBase"]
[SourceQuality "1"]
[TimeControl "40/5400+30:1800+30"]

1. e4 {[%emt 0:00:00]} c5 {[%emt 0:00:00]} 2. Nf3 {[%emt 0:00:00]} g6 {[%emt 0:00:00]} 3. c3 {[%emt 0:00:00]} Bg7 {[%emt 0:00:00]} 4. d4 {[%emt 0:00:00]} cxd4 {[%emt 0:00:00]} 5. cxd4 {[%emt 0:00:00]} d5 {[%emt 0:00:00]} 6. e5 {[%emt 0:00:00]} Bg4 {[%emt 0:00:00]} 7. Bb5+ {[%emt 0:00:00]} Nd7 {[%emt 0:00:00]} 8. Nbd2 {[%emt 0:00:00]} e6 {[%emt 0:03:23]} 9. O-O {[%emt 0:00:00]} Ne7 {[%emt 0:05:49]} 10. h3 {[%emt 0:00:00]} Bxf3 {[%emt 0:04:05]} 11. Nxf3 {[%emt 0:00:00]} O-O {[%emt 0:01:24]} 12. Bg5 {[%emt 0:09:21]} a6 {[%emt 0:13:48]} 13. Bd3 {[%emt 0:06:38]} Nb8 {[%emt 0:04:53]} 14. Qd2 {[%emt 0:00:49]} Nbc6 {[%emt 0:02:53]} 15. Rac1 {[%emt 0:08:17]} Qb6 {[%emt 0:01:23]} 16. g4 {[%emt 0:02:57]} f6 {[%emt 0:12:15]} 17. exf6 {[%emt 0:05:25]} Bxf6 {[%emt 0:00:12]} 18. Qe3 {[%emt 0:16:14]} e5 {[%emt 0:28:23]} 19. Bxf6 {[%emt 0:02:53]} Rxf6 {[%emt 0:06:38]} 20. dxe5 {[%emt 0:05:54]} Qxe3 {[%emt 0:00:38]} 21. fxe3 {[%emt 0:00:24]} Re6 {[%emt 0:00:23]} 22. e4 {[%emt 0:03:26]} Nxe5 {[%emt 0:03:05]} 23. Nxe5 {[%emt 0:03:12]} Rxe5 {[%emt 0:00:24]} 24. exd5 {[%emt 0:01:25]} Rd8 {[%emt 0:03:37]} 25. Rfe1 {[%emt 0:07:54]} Rxe1+ {[%emt 0:02:29]} 26. Rxe1 {[%emt 0:00:07]} Rd7 {[%emt 0:00:55]} 27. Bc4 {[%emt 0:00:47]} Kg7 {[%emt 0:02:08]} 28. d6 {[%emt 0:16:20]} Nc6 {[%emt 0:02:19]} 29. Re6 {[%emt 0:00:37]} Kh6 {[%emt 0:02:57]} 30. h4 {[%emt 0:00:47]} b5 {[%emt 0:00:19]} 31. g5+ {[%emt 0:03:38]} Kh5 {[%emt 0:00:51]} 32. Bd5 {[%emt 0:03:46]} Nb4 {[%emt 0:00:34]} 33. Bb3 {[%emt 0:02:24]} Kxh4 {[%emt 0:00:42]} 34. Re4+ {[%emt 0:00:52]} Kxg5 {[%emt 0:00:04]} 35. Rxb4 {[%emt 0:00:27]} Rxd6 {[%emt 0:00:04]} 36. Bg8 {[%emt 0:02:02]} h5 {[%emt 0:00:17]} 37. Rb3 {[%emt 0:00:43]} Rd2 {[%emt 0:00:28]} 38. Rg3+ {[%emt 0:00:44]} Kf6 {[%emt 0:00:45]} 39. Rg2 {[%emt 0:00:52]} Rd1+ {[%emt 0:00:28]} 40. Kf2 {[%emt 0:00:23]} Rd2+ {[%emt 0:00:07]} 41. Kf3 {[%emt 0:30:07]} Rd8 {[%emt 0:01:27]} 42. Bh7 {[%emt 0:00:00]} g5 {[%emt 0:00:38]} 43. Rc2 {[%emt 0:00:00]} Rf8 {[%emt 0:08:05]} 44. Kg3 {[%emt 0:00:00]} Ke5 {[%emt 0:00:45]} 45. Rc5+ {[%emt 0:00:00]} Kd4 {[%emt 0:03:03]} 46. Rxg5 {[%emt 0:00:00]} h4+ {[%emt 0:00:18]} 47. Kxh4 {[%emt 0:00:00]} Rf2 {[%emt 0:00:31]} 48. Rg4+ {[%emt 0:00:00]} Kc5 {[%emt 0:01:40]} 49. b4+ {[%emt 0:00:00]} Kb6 {[%emt 0:00:07]} 50. Bg8 {[%emt 0:00:00]} Rf3 {[%emt 0:03:55]} 51. Rg6+ {[%emt 0:00:00]} Kc7 {[%emt 0:00:24]} 52. Kg4 {[%emt 0:00:00]} Ra3 {[%emt 0:00:37]} 53. Kf5 {[%emt 0:00:00]} Ra4 {[%emt 0:00:46]} 54. Rg4 {[%emt 0:00:00]} a5 {[%emt 0:00:19]} 55. Bb3 {[%emt 0:00:00]} Ra3 {[%emt 0:00:04]} 56. Ke5 {[%emt 0:00:00]} axb4 {[%emt 0:00:20]} 57. Rxb4 {[%emt 0:00:00]} Kc6 {[%emt 0:02:46]} 58. Rh4 {[%emt 0:00:00]} Kc5 {[%emt 0:00:50]} 59. Ke4 {[%emt 0:00:00]} Ra7 {[%emt 0:02:35]} 60. Kd3 {[%emt 0:00:00]} Rg7 {[%emt 0:00:24]} 61. Kc3 {[%emt 0:00:00]} b4+ {[%emt 0:04:16]} 62. Kd3 {[%emt 0:00:00]} Rd7+ {[%emt 0:01:10]} 63. Kc2 {[%emt 0:00:00]} Rg7 {[%emt 0:00:42]} 64. Rh5+ {[%emt 0:00:00]} Kb6 {[%emt 0:00:50]} 65. Bc4 {[%emt 0:00:00]} Rg2+ {[%emt 0:01:34]} 66. Kb3 {[%emt 0:00:00]} Rg1 {[%emt 0:02:51]} 67. Kxb4 {[%emt 0:00:00]} Rb1+ {[%emt 0:00:20]} 68. Bb3 {[%emt 0:00:00]} Rg1 {[%emt 0:00:36]} 69. Rh6+ {[%emt 0:00:00]} Kb7 {[%emt 0:00:54]} 70. Bc4 {[%emt 0:00:00]} Rg7 {[%emt 0:00:25]} 71. a4 {[%emt 0:00:00]} Kb8 {[%emt 0:00:30]} 72. Rf6 {[%emt 0:00:00]} Rb7+ {[%emt 0:00:34]} 73. Bb5 {[%emt 0:00:00]} Ka7 {[%emt 0:00:14]} 74. Rd6 {[%emt 0:00:17]} Kb8 {[%emt 0:01:17]} 75. Rd8+ {[%emt 0:00:20]} Ka7 {[%emt 0:00:11]} 76. Rd7 {[%emt 0:00:12]} Ka8 {[%emt 0:00:05]} 77. Rxb7 {[%emt 0:00:14]} Kxb7 {[%emt 0:00:21]} 78. Kc5 {[%emt 0:00:15]} 1-0

[Event "Fagernes Open 2021"]
[Site "Fagernes"]
[Date "2021.10.14"]
[Round "6.2"]
[White "Edvardsen, Ragnar"]
[Black "Krivenko, Dion"]
[Result "0-1"]
[ECO "B45"]
[WhiteElo "1865"]
[BlackElo "2045"]
[Annotator "NA"]
[PlyCount "102"]
[EventDate "2021.10.10"]
[EventCountry "NOR"]
[SourceTitle "playchess.com"]
[Source "ChessBase"]
[SourceQuality "1"]
[TimeControl "40/5400+30:1800+30"]

1. e4 {[%emt 0:00:00]} c5 {[%emt 0:00:00]} 2. Nf3 {[%emt 0:00:00]} e6 {[%emt 0:00:00]} 3. d4 {[%emt 0:00:00]} cxd4 {[%emt 0:00:00]} 4. Nxd4 {[%emt 0:00:00]} Nf6 {[%emt 0:00:00]} 5. Nc3 {[%emt 0:00:00]} Nc6 {[%emt 0:00:00]} 6. Be3 {[%emt 0:00:00]} Bb4 {[%emt 0:00:00]} 7. Nxc6 {[%emt 0:04:21]} bxc6 {[%emt 0:00:00]} 8. Bd3 {[%emt 0:01:21]} d5 {[%emt 0:00:00]} 9. exd5 {[%emt 0:01:38]} exd5 {[%emt 0:00:00]} 10. a3 {[%emt 0:07:36]} Be7 {[%emt 0:06:17]} 11. Bg5 {[%emt 0:05:41]} Bg4 {[%emt 0:04:38]} 12. Be2 {[%emt 0:03:18]} Be6 {[%emt 0:01:40]} 13. O-O {[%emt 0:00:55]} h6 {[%emt 0:00:34]} 14. Bh4 {[%emt 0:03:28]} O-O {[%emt 0:00:46]} 15. Kh1 {[%emt 0:01:15]} Rb8 {[%emt 0:01:35]} 16. Rb1 {[%emt 0:02:29]} Qa5 {[%emt 0:11:24]} 17. b4 {[%emt 0:04:59]} Qc7 {[%emt 0:03:50]} 18. Bg3 {[%emt 0:04:25]} Bd6 {[%emt 0:00:21]} 19. Bxd6 {[%emt 0:01:55]} Qxd6 {[%emt 0:00:02]} 20. Na4 {[%emt 0:00:50]} Bf5 {[%emt 0:04:51]} 21. Rb3 {[%emt 0:12:12]} Rfe8 {[%emt 0:08:17]} 22. f3 {[%emt 0:13:50]} Nh5 {[%emt 0:04:42]} 23. Bd3 {[%emt 0:00:00]} Bxd3 {[%emt 0:02:13]} 24. Rxd3 {[%emt 0:00:08]} Nf4 {[%emt 0:02:12]} 25. Rd2 {[%emt 0:01:40]} a5 {[%emt 0:02:13]} 26. c3 {[%emt 0:00:33]} axb4 {[%emt 0:03:12]} 27. axb4 {[%emt 0:03:19]} Re3 {[%emt 0:02:18]} 28. g3 {[%emt 0:00:35]} Ne6 {[%emt 0:02:03]} 29. Re1 {[%emt 0:01:55]} Rxe1+ {[%emt 0:00:45]} 30. Qxe1 {[%emt 0:00:09]} Ra8 {[%emt 0:01:17]} 31. Nb6 {[%emt 0:01:44]} Ra6 {[%emt 0:05:27]} 32. Nc4 {[%emt 0:00:37]} Qc7 {[%emt 0:00:01]} 33. Ne5 {[%emt 0:00:31]} Ra3 {[%emt 0:02:10]} 34. Rd1 {[%emt 0:03:59]} Ng5 {[%emt 0:02:10]} 35. h4 {[%emt 0:03:10]} Qc8 {[%emt 0:06:47]} 36. Qf1 {[%emt 0:07:16]} Ne6 {[%emt 0:06:51]} 37. c4 {[%emt 0:01:54]} d4 {[%emt 0:02:01]} 38. Rd3 {[%emt 0:02:35]} Ra2 {[%emt 0:00:25]} 39. f4 {[%emt 0:00:41]} c5 {[%emt 0:03:30]} 40. f5 {[%emt 0:01:37]} Nf8 {[%emt 0:00:43]} 41. bxc5 {[%emt 0:31:08]} Qxc5 {[%emt 0:32:08]} 42. Qf4 {[%emt 0:07:10]} Qb4 {[%emt 0:09:13]} 43. Qf1 {[%emt 0:00:00]} Qb7+ {[%emt 0:00:00]} 44. Nf3 {[%emt 0:00:00]} Nd7 {[%emt 0:00:00]} 45. Kg1 {[%emt 0:00:00]} Qe4 {[%emt 0:00:00]} 46. Rxd4 {[%emt 0:00:00]} Qe3+ {[%emt 0:00:00]} 47. Kh1 {[%emt 0:00:00]} Rf2 {[%emt 0:00:00]} 48. Qd1 {[%emt 0:00:00]} Rxf3 {[%emt 0:00:00]} 49. Rxd7 {[%emt 0:00:00]} Rxg3 {[%emt 0:00:00]} 50. Rd8+ {[%emt 0:00:00]} Kh7 {[%emt 0:00:00]} 51. Rd2 {[%emt 0:00:00]} Qe4+ {[%emt 0:00:00]} 0-1

[Event "Fagernes Open 2021"]
[Site "Fagernes"]
[Date "2021.10.14"]
[Round "6.3"]
[White "Kreken, Eivind Grunt"]
[Black "Amundsen, Ask"]
[Result "1-0"]
[ECO "A45"]
[WhiteElo "1838"]
[BlackElo "1816"]
[Annotator "NA"]
[PlyCount "71"]
[EventDate "2021.10.10"]
[EventCountry "NOR"]
[SourceTitle "playchess.com"]
[Source "ChessBase"]
[SourceQuality "1"]
[TimeControl "40/5400+30:1800+30"]

1. d4 {[%emt 0:00:00]} Nf6 {[%emt 0:00:00]} 2. Bg5 {[%emt 0:00:00]} Ne4 {[%emt 0:00:00]} 3. Bf4 {[%emt 0:00:00]} d5 {[%emt 0:00:00]} 4. e3 {[%emt 0:00:00]} c5 {[%emt 0:00:00]} 5. Bd3 {[%emt 0:00:00]} Nf6 {[%emt 0:00:00]} 6. c3 {[%emt 0:00:00]} Nc6 {[%emt 0:00:00]} 7. Nd2 {[%emt 0:00:00]} Qb6 {[%emt 0:01:31]} 8. Rb1 {[%emt 0:00:00]} g6 {[%emt 0:02:23]} 9. Ngf3 {[%emt 0:00:00]} Nh5 {[%emt 0:02:31]} 10. Be5 {[%emt 0:11:40]} f6 {[%emt 0:02:56]} 11. Bg3 {[%emt 0:01:22]} Nxg3 {[%emt 0:00:40]} 12. hxg3 {[%emt 0:00:08]} Bg7 {[%emt 0:02:02]} 13. Rxh7 {[%emt 0:01:12]} Kf7 {[%emt 0:04:33]} 14. Rxh8 {[%emt 0:03:22]} Bxh8 {[%emt 0:00:08]} 15. Nh4 {[%emt 0:03:52]} f5 {[%emt 0:03:31]} 16. g4 {[%emt 0:09:06]} e6 {[%emt 0:05:28]} 17. Qf3 {[%emt 0:09:14]} Bf6 {[%emt 0:04:40]} 18. gxf5 {[%emt 0:07:03]} exf5 {[%emt 0:00:18]} 19. Qg3 {[%emt 0:03:02]} Ne7 {[%emt 0:00:59]} 20. Ndf3 {[%emt 0:03:13]} c4 {[%emt 0:03:33]} 21. Bc2 {[%emt 0:00:46]} Bd7 {[%emt 0:00:20]} 22. Ne5+ {[%emt 0:06:49]} Bxe5 {[%emt 0:00:20]} 23. Qxe5 {[%emt 0:03:34]} Qf6 {[%emt 0:00:50]} 24. Nf3 {[%emt 0:03:16]} g5 {[%emt 0:06:21]} 25. Kd2 {[%emt 0:03:16]} Bc6 {[%emt 0:28:07]} 26. Rh1 {[%emt 0:04:16]} Qxe5 {[%emt 0:02:14]} 27. Nxe5+ {[%emt 0:00:33]} Kg7 {[%emt 0:00:57]} 28. Rh5 {[%emt 0:01:21]} Kf6 {[%emt 0:01:41]} 29. Rh6+ {[%emt 0:01:08]} Kg7 {[%emt 0:00:13]} 30. Re6 {[%emt 0:01:34]} Re8 {[%emt 0:02:57]} 31. Nxc6 {[%emt 0:01:00]} bxc6 {[%emt 0:01:18]} 32. Bxf5 {[%emt 0:01:01]} Kf7 {[%emt 0:01:11]} 33. Bh3 {[%emt 0:04:08]} Rg8 {[%emt 0:03:01]} 34. f3 {[%emt 0:01:11]} a5 {[%emt 0:03:25]} 35. Rd6 {[%emt 0:00:54]} a4 {[%emt 0:01:23]} 36. Be6+ {[%emt 0:00:10]} 1-0

[Event "Fagernes Open 2021"]
[Site "Fagernes"]
[Date "2021.10.14"]
[Round "6.4"]
[White "Galinsky, Misha"]
[Black "Pedersen, Max Moe"]
[Result "0-1"]
[ECO "D00"]
[WhiteElo "1756"]
[BlackElo "1837"]
[Annotator "NA"]
[PlyCount "114"]
[EventDate "2021.10.10"]
[EventCountry "NOR"]
[SourceTitle "playchess.com"]
[Source "ChessBase"]
[SourceQuality "1"]
[TimeControl "40/5400+30:1800+30"]

1. a3 {[%emt 0:00:00]} d5 {[%emt 0:00:00]} 2. d4 {[%emt 0:00:00]} Nf6 {[%emt 0:00:00]} 3. Nf3 {[%emt 0:00:00]} Bf5 {[%emt 0:00:00]} 4. Bf4 {[%emt 0:00:00]} e6 {[%emt 0:00:00]} 5. e3 {[%emt 0:00:00]} Be7 {[%emt 0:03:11]} 6. c4 {[%emt 0:00:00]} O-O {[%emt 0:07:44]} 7. Nc3 {[%emt 0:00:00]} c6 {[%emt 0:15:43]} 8. Bd3 {[%emt 0:14:58]} dxc4 {[%emt 0:13:29]} 9. Bxf5 {[%emt 0:06:33]} exf5 {[%emt 0:00:06]} 10. Ne5 {[%emt 0:00:08]} Nd5 {[%emt 0:02:52]} 11. Nxd5 {[%emt 0:05:04]} cxd5 {[%emt 0:02:17]} 12. g4 {[%emt 0:09:42]} f6 {[%emt 0:08:38]} 13. Nf3 {[%emt 0:00:06]} fxg4 {[%emt 0:00:29]} 14. Nd2 {[%emt 0:00:03]} f5 {[%emt 0:05:47]} 15. h3 {[%emt 0:01:30]} Bg5 {[%emt 0:04:48]} 16. Bxb8 {[%emt 0:02:55]} Rxb8 {[%emt 0:00:29]} 17. hxg4 {[%emt 0:00:07]} f4 {[%emt 0:04:25]} 18. Qc2 {[%emt 0:02:18]} h6 {[%emt 0:01:30]} 19. e4 {[%emt 0:01:34]} f3 {[%emt 0:03:09]} 20. O-O-O {[%emt 0:03:53]} b5 {[%emt 0:01:19]} 21. Kb1 {[%emt 0:04:00]} b4 {[%emt 0:09:32]} 22. a4 {[%emt 0:03:34]} Qd7 {[%emt 0:01:53]} 23. exd5 {[%emt 0:02:58]} b3 {[%emt 0:01:37]} 24. Qxc4 {[%emt 0:02:51]} Rfc8 {[%emt 0:00:12]} 25. Qa6 {[%emt 0:00:09]} Qxd5 {[%emt 0:02:59]} 26. Rhe1 {[%emt 0:03:23]} Re8 {[%emt 0:05:00]} 27. Qd3 {[%emt 0:28:04]} Bxd2 {[%emt 0:03:26]} 28. Qxd2 {[%emt 0:00:08]} Qc4 {[%emt 0:00:51]} 29. Qa5 {[%emt 0:08:27]} Qc2+ {[%emt 0:01:03]} 30. Ka1 {[%emt 0:00:01]} Rxe1 {[%emt 0:01:25]} 31. Qxe1 {[%emt 0:01:19]} Qc4 {[%emt 0:00:11]} 32. Qc3 {[%emt 0:01:03]} Qxa4+ {[%emt 0:00:12]} 33. Kb1 {[%emt 0:01:34]} Qa2+ {[%emt 0:01:33]} 34. Kc1 {[%emt 0:00:00]} Qa6 {[%emt 0:00:26]} 35. Qxf3 {[%emt 0:00:30]} Rc8+ {[%emt 0:00:33]} 36. Kd2 {[%emt 0:00:02]} Qa2 {[%emt 0:00:40]} 37. Ke1 {[%emt 0:01:14]} Qxb2 {[%emt 0:00:13]} 38. d5 {[%emt 0:00:31]} Qe5+ {[%emt 0:00:26]} 39. Qe3 {[%emt 0:00:29]} Qxe3+ {[%emt 0:01:09]} 40. fxe3 {[%emt 0:00:02]} b2 {[%emt 0:00:11]} 41. Kd2 {[%emt 0:30:11]} Rc5 {[%emt 0:30:47]} 42. e4 {[%emt 0:00:17]} Rc4 {[%emt 0:00:00]} 43. Rb1 {[%emt 0:00:00]} Rxe4 {[%emt 0:00:00]} 44. Rxb2 {[%emt 0:00:00]} Rd4+ {[%emt 0:00:00]} 45. Ke3 {[%emt 0:00:00]} Rxd5 {[%emt 0:00:00]} 46. Ra2 {[%emt 0:00:00]} a5 {[%emt 0:00:00]} 47. Ra4 {[%emt 0:00:00]} Rb5 {[%emt 0:00:00]} 48. Kf3 {[%emt 0:00:00]} Kh7 {[%emt 0:00:00]} 49. Ra3 {[%emt 0:00:00]} Kg6 {[%emt 0:00:00]} 50. Kg3 {[%emt 0:00:00]} Kg5 {[%emt 0:00:00]} 51. Kh3 {[%emt 0:00:00]} Kf4 {[%emt 0:00:00]} 52. Kh4 {[%emt 0:00:00]} g6 {[%emt 0:00:00]} 53. Ra4+ {[%emt 0:00:00]} Ke3 {[%emt 0:00:00]} 54. Ra3+ {[%emt 0:00:00]} Kd4 {[%emt 0:00:00]} 55. Ra4+ {[%emt 0:00:00]} Kc3 {[%emt 0:00:00]} 56. Re4 {[%emt 0:00:00]} Rb6 {[%emt 0:00:00]} 57. Ra4 {[%emt 0:00:00]} Ra6 {[%emt 0:00:00]} 0-1

[Event "Fagernes Open 2021"]
[Site "Fagernes"]
[Date "2021.10.14"]
[Round "6.5"]
[White "Fredriksen, Jan Gunnar"]
[Black "Stromhaug, Kristoffer Wang"]
[Result "1/2-1/2"]
[ECO "A00"]
[WhiteElo "1835"]
[BlackElo "1718"]
[Annotator "NA"]
[PlyCount "86"]
[EventDate "2021.10.10"]
[EventCountry "NOR"]
[SourceTitle "playchess.com"]
[Source "ChessBase"]
[SourceQuality "1"]
[TimeControl "40/5400+30:1800+30"]

1. g4 {[%emt 0:00:00]} d5 {[%emt 0:00:00]} 2. Bg2 {[%emt 0:00:00]} e6 {[%emt 0:00:00]} 3. d3 {[%emt 0:00:00]} Bd6 {[%emt 0:00:00]} 4. Nc3 {[%emt 0:00:00]} a6 {[%emt 0:02:36]} 5. e4 {[%emt 0:00:00]} d4 {[%emt 0:06:24]} 6. Nce2 {[%emt 0:00:00]} e5 {[%emt 0:00:41]} 7. Ng3 {[%emt 0:00:00]} Bb4+ {[%emt 0:03:45]} 8. Kf1 {[%emt 0:00:00]} Nc6 {[%emt 0:03:32]} 9. h4 {[%emt 0:02:21]} g6 {[%emt 0:04:14]} 10. g5 {[%emt 0:01:44]} Be6 {[%emt 0:09:18]} 11. Bh3 {[%emt 0:02:51]} Qd7 {[%emt 0:07:37]} 12. Kg2 {[%emt 0:01:03]} O-O-O {[%emt 0:02:24]} 13. Bxe6 {[%emt 0:04:03]} Qxe6 {[%emt 0:08:09]} 14. Nh3 {[%emt 0:00:55]} Nge7 {[%emt 0:02:58]} 15. Rf1 {[%emt 0:06:19]} Rhf8 {[%emt 0:04:43]} 16. f4 {[%emt 0:00:38]} f5 {[%emt 0:06:19]} 17. gxf6 {[%emt 0:25:45]} Rxf6 {[%emt 0:01:49]} 18. a3 {[%emt 0:03:59]} Bd6 {[%emt 0:02:13]} 19. Ng5 {[%emt 0:09:14]} Qg8 {[%emt 0:05:07]} 20. Qg4+ {[%emt 0:04:45]} Kb8 {[%emt 0:00:45]} 21. Nh3 {[%emt 0:01:54]} Rdf8 {[%emt 0:08:17]} 22. Bd2 {[%emt 0:02:55]} exf4 {[%emt 0:02:25]} 23. Bxf4 {[%emt 0:01:37]} Bxf4 {[%emt 0:00:10]} 24. Rxf4 {[%emt 0:01:01]} Rxf4 {[%emt 0:04:20]} 25. Nxf4 {[%emt 0:00:08]} Ne5 {[%emt 0:01:02]} 26. Qg5 {[%emt 0:00:19]} N7c6 {[%emt 0:00:37]} 27. Nge2 {[%emt 0:10:55]} Qh8 {[%emt 0:05:43]} 28. Rf1 {[%emt 0:06:25]} h6 {[%emt 0:01:30]} 29. Qg3 {[%emt 0:00:08]} g5 {[%emt 0:01:40]} 30. hxg5 {[%emt 0:00:55]} hxg5 {[%emt 0:00:15]} 31. Nh3 {[%emt 0:03:25]} Rxf1 {[%emt 0:01:31]} 32. Kxf1 {[%emt 0:00:06]} Qf8+ {[%emt 0:00:47]} 33. Qf2 {[%emt 0:01:04]} Qh6 {[%emt 0:01:41]} 34. Qg2 {[%emt 0:02:04]} g4 {[%emt 0:01:34]} 35. Nhf4 {[%emt 0:00:32]} Nf3 {[%emt 0:02:18]} 36. c3 {[%emt 0:02:49]} Qh4 {[%emt 0:00:30]} 37. Qg3 {[%emt 0:01:49]} Qh1+ {[%emt 0:00:34]} 38. Ng1 {[%emt 0:00:05]} Nxg1 {[%emt 0:01:23]} 39. Qxg1 {[%emt 0:00:07]} Qf3+ {[%emt 0:00:05]} 40. Qf2 {[%emt 0:00:08]} Qh1+ {[%emt 0:00:32]} 41. Qg1 {[%emt 0:31:25]} Qf3+ {[%emt 0:30:23]} 42. Qf2 {[%emt 0:00:06]} Qh1+ {[%emt 0:00:54]} 43. Qg1 {[%emt 0:00:51]} Qf3+ {[%emt 0:00:17]} 1/2-1/2

[Event "Fagernes Open 2021"]
[Site "Fagernes"]
[Date "2021.10.14"]
[Round "6.6"]
[White "Fiskaaen, Martin Holten"]
[Black "Johannessen, Theo N"]
[Result "1-0"]
[ECO "D85"]
[WhiteElo "1829"]
[BlackElo "1668"]
[Annotator "NA"]
[PlyCount "75"]
[EventDate "2021.10.10"]
[EventCountry "NOR"]
[SourceTitle "playchess.com"]
[Source "ChessBase"]
[SourceQuality "1"]
[TimeControl "40/5400+30:1800+30"]

1. d4 {[%emt 0:00:00]} Nf6 {[%emt 0:00:00]} 2. c4 {[%emt 0:00:00]} g6 {[%emt 0:00:00]} 3. Nc3 {[%emt 0:00:00]} d5 {[%emt 0:00:00]} 4. cxd5 {[%emt 0:00:00]} Nxd5 {[%emt 0:00:00]} 5. Bd2 {[%emt 0:00:00]} Bg7 {[%emt 0:00:00]} 6. e4 {[%emt 0:00:00]} Nxc3 {[%emt 0:00:35]} 7. Bxc3 {[%emt 0:00:00]} c5 {[%emt 0:05:23]} 8. d5 {[%emt 0:00:00]} Bxc3+ {[%emt 0:08:33]} 9. bxc3 {[%emt 0:00:00]} Qa5 {[%emt 0:01:12]} 10. Qd2 {[%emt 0:00:00]} b6 {[%emt 0:09:04]} 11. Nf3 {[%emt 0:00:00]} Ba6 {[%emt 0:03:37]} 12. g3 {[%emt 0:10:10]} Bxf1 {[%emt 0:03:54]} 13. Kxf1 {[%emt 0:00:28]} Nd7 {[%emt 0:01:52]} 14. a4 {[%emt 0:04:03]} O-O-O {[%emt 0:07:43]} 15. Kg2 {[%emt 0:03:37]} f6 {[%emt 0:08:00]} 16. Qe2 {[%emt 0:06:46]} Kb7 {[%emt 0:03:02]} 17. Ra3 {[%emt 0:17:18]} Qa6 {[%emt 0:12:07]} 18. c4 {[%emt 0:04:17]} Ne5 {[%emt 0:00:08]} 19. Nxe5 {[%emt 0:05:23]} fxe5 {[%emt 0:00:08]} 20. a5 {[%emt 0:00:44]} b5 {[%emt 0:08:18]} 21. cxb5 {[%emt 0:00:21]} Qd6 {[%emt 0:00:36]} 22. Rc3 {[%emt 0:08:14]} e6 {[%emt 0:03:37]} 23. dxe6 {[%emt 0:00:44]} Rhe8 {[%emt 0:02:03]} 24. Rhc1 {[%emt 0:01:45]} Rc8 {[%emt 0:02:39]} 25. Qe3 {[%emt 0:02:26]} Qxe6 {[%emt 0:06:19]} 26. Rxc5 {[%emt 0:01:44]} Rf8 {[%emt 0:01:34]} 27. Qc3 {[%emt 0:02:57]} Rxc5 {[%emt 0:05:39]} 28. Qxc5 {[%emt 0:01:04]} Rf7 {[%emt 0:00:07]} 29. Qc6+ {[%emt 0:03:24]} Qxc6 {[%emt 0:00:10]} 30. Rxc6 {[%emt 0:00:08]} Re7 {[%emt 0:00:42]} 31. Rc5 {[%emt 0:00:17]} Re6 {[%emt 0:00:21]} 32. Kf3 {[%emt 0:00:24]} h5 {[%emt 0:00:20]} 33. h4 {[%emt 0:00:33]} Rf6+ {[%emt 0:00:16]} 34. Ke3 {[%emt 0:00:09]} Re6 {[%emt 0:00:13]} 35. f4 {[%emt 0:00:17]} exf4+ {[%emt 0:00:16]} 36. gxf4 {[%emt 0:00:23]} Rf6 {[%emt 0:00:29]} 37. f5 {[%emt 0:00:13]} a6 {[%emt 0:00:25]} 38. b6 {[%emt 0:00:13]} 1-0